[Event "*** SCC Grand Prix: Titled Tuesday Blitz"]
[Site "Chess.com"]
[Date "2020.07.07"]
[Round "6"]
[White "alexrustemov"]
[Black "ArjunErigaisi2003"]
[Result "0-1"]
[WhiteElo "2727"]
[BlackElo "3019"]
[TimeControl "180+1"]
[EndTime "11:06:48 PDT"]
[Termination "ArjunErigaisi2003 won by resignation"]

1. Nf3 {[%clk 0:03:00.9]} 1... Nf6 {[%clk 0:02:57.5]} 2. g3 {[%clk 0:03:00.3]}
2... d5 {[%clk 0:02:56.2]} 3. Bg2 {[%clk 0:02:59.8]} 3... Bf5 {[%clk 0:02:55.7]}
4. O-O {[%clk 0:02:59.2]} 4... c6 {[%clk 0:02:55.8]} 5. d3 {[%clk 0:02:58.9]}
5... e6 {[%clk 0:02:52.7]} 6. Nbd2 {[%clk 0:02:58.4]} 6... Be7 {[%clk
0:02:51.3]} 7. c4 {[%clk 0:02:55.7]} 7... O-O {[%clk 0:02:50.7]} 8. b3 {[%clk
0:02:55.4]} 8... a5 {[%clk 0:02:49.8]} 9. a3 {[%clk 0:02:55]} 9... h6 {[%clk
0:02:49.5]} 10. Bb2 {[%clk 0:02:54.7]} 10... Nbd7 {[%clk 0:02:49.4]} 11. Qc2
{[%clk 0:02:54.6]} 11... Bh7 {[%clk 0:02:48.6]} 12. Bc3 {[%clk 0:02:53.6]} 12...
b5 {[%clk 0:02:43]} 13. cxb5 {[%clk 0:02:52.2]} 13... cxb5 {[%clk 0:02:43.9]}
14. Bd4 {[%clk 0:02:52]} 14... Qb8 {[%clk 0:02:40.8]} 15. Qb2 {[%clk 0:02:50.6]}
15... Bd6 {[%clk 0:02:35]} 16. Bxf6 {[%clk 0:02:13.2]} 16... Nxf6 {[%clk
0:02:35.9]} 17. Rfc1 {[%clk 0:02:06.5]} 17... Rc8 {[%clk 0:02:21.7]} 18. Nd4
{[%clk 0:01:56.3]} 18... Qb6 {[%clk 0:02:18.7]} 19. b4 {[%clk 0:01:41.4]} 19...
axb4 {[%clk 0:01:41]} 20. axb4 {[%clk 0:01:42.3]} 20... Rxa1 {[%clk 0:01:38.4]}
21. Rxa1 {[%clk 0:01:40.8]} 21... e5 {[%clk 0:01:28.1]} 22. Bh3 {[%clk 0:01:30]}
22... Re8 {[%clk 0:01:14.7]} 23. Nf5 {[%clk 0:01:28.4]} 23... Bf8 {[%clk
0:01:14.2]} 24. Ne3 {[%clk 0:01:16.8]} 24... d4 {[%clk 0:00:59.8]} 25. Nc2
{[%clk 0:00:59]} 25... Nd5 {[%clk 0:00:58.6]} 26. Ra5 {[%clk 0:00:40]} 26...
Nxb4 {[%clk 0:00:49.6]} 27. Nb3 {[%clk 0:00:28.7]} 27... Nd5 {[%clk 0:00:37.9]}
28. Qa1 {[%clk 0:00:20.3]} 28... Nc3 {[%clk 0:00:32.5]} 29. Bf1 {[%clk
0:00:15.8]} 29... Qc6 {[%clk 0:00:29]} 30. Ra7 {[%clk 0:00:12.7]} 30... Nxe2+
{[%clk 0:00:23.9]} 31. Bxe2 {[%clk 0:00:12.6]} 31... Qxc2 {[%clk 0:00:24.8]} 32.
Qa2 {[%clk 0:00:11.4]} 32... Qxa2 {[%clk 0:00:22.3]} 33. Rxa2 {[%clk 0:00:12.3]}
33... Bf5 {[%clk 0:00:19.7]} 34. Ra5 {[%clk 0:00:11.2]} 34... Rb8 {[%clk
0:00:19.3]} 35. f3 {[%clk 0:00:09.1]} 35... Be6 {[%clk 0:00:19]} 36. Bd1 {[%clk
0:00:09.2]} 36... Bb4 {[%clk 0:00:16.6]} 37. Ra7 {[%clk 0:00:09]} 37... Rc8
{[%clk 0:00:16.7]} 38. Kf2 {[%clk 0:00:08.9]} 38... Rc3 {[%clk 0:00:16.6]} 39.
Nd2 {[%clk 0:00:08.7]} 39... Rxd3 {[%clk 0:00:16.6]} 40. Ra8+ {[%clk 0:00:08]}
40... Bf8 {[%clk 0:00:15.8]} 41. Bc2 {[%clk 0:00:08.9]} 41... Rxd2+ {[%clk
0:00:15.9]} 42. Ke1 {[%clk 0:00:06.5]} 42... Rxc2 {[%clk 0:00:16.2]} 0-1

[Event "*** SCC Grand Prix: Titled Tuesday Blitz"]
[Site "Chess.com"]
[Date "2020.07.07"]
[Round "6"]
[White "Kotofeyca"]
[Black "GelmanAlexander"]
[Result "0-1"]
[WhiteElo "2348"]
[BlackElo "2538"]
[TimeControl "180+1"]
[EndTime "11:06:48 PDT"]
[Termination "GelmanAlexander won on time"]

1. d4 {[%clk 0:00:17.7]} 1... Nf6 {[%clk 0:02:58.8]} 2. c4 {[%clk 0:00:17.6]}
2... c5 {[%clk 0:02:58.6]} 3. Nf3 {[%clk 0:00:17.4]} 3... cxd4 {[%clk
0:02:58.6]} 4. Nxd4 {[%clk 0:00:18.3]} 4... d6 {[%clk 0:02:57.2]} 5. Nc3 {[%clk
0:00:18]} 5... Nbd7 {[%clk 0:02:57.6]} 6. g3 {[%clk 0:00:18.6]} 6... e6 {[%clk
0:02:57.4]} 7. Bg2 {[%clk 0:00:19.1]} 7... a6 {[%clk 0:02:58]} 8. O-O {[%clk
0:00:19.5]} 8... Be7 {[%clk 0:02:58.7]} 9. b3 {[%clk 0:00:19.1]} 9... O-O {[%clk
0:02:59.2]} 10. Ba3 {[%clk 0:00:19.1]} 10... Qc7 {[%clk 0:02:59.9]} 11. Rc1
{[%clk 0:00:17.9]} 11... Ne5 {[%clk 0:03:00]} 12. Qd2 {[%clk 0:00:17.4]} 12...
Rd8 {[%clk 0:02:59.8]} 13. Rfd1 {[%clk 0:00:17.3]} 13... Bd7 {[%clk 0:03:00.3]}
14. Ne4 {[%clk 0:00:17.2]} 14... Nxe4 {[%clk 0:02:57.6]} 15. Bxe4 {[%clk
0:00:18.1]} 15... Rac8 {[%clk 0:02:56.5]} 16. Nf3 {[%clk 0:00:17.8]} 16... Nxf3+
{[%clk 0:02:47.3]} 17. Bxf3 {[%clk 0:00:18.7]} 17... Bc6 {[%clk 0:02:45.9]} 18.
Qf4 {[%clk 0:00:18.7]} 18... h6 {[%clk 0:02:40.1]} 19. h4 {[%clk 0:00:15.2]}
19... Bf8 {[%clk 0:02:25.8]} 20. Bxc6 {[%clk 0:00:13.2]} 20... bxc6 {[%clk
0:02:22.7]} 21. Qd2 {[%clk 0:00:12.4]} 21... Qb8 {[%clk 0:02:11.8]} 22. Qa5
{[%clk 0:00:08.9]} 22... Qb7 {[%clk 0:02:06.9]} 23. Rd2 {[%clk 0:00:08.5]} 23...
c5 {[%clk 0:01:59.8]} 24. Rcd1 {[%clk 0:00:08.1]} 24... Be7 {[%clk 0:01:42.7]}
25. Bb2 {[%clk 0:00:06.6]} 25... Qc6 {[%clk 0:01:39.3]} 26. Qc3 {[%clk
0:00:06.4]} 26... Bf8 {[%clk 0:01:36.1]} 27. Qc2 {[%clk 0:00:07.3]} 27... d5
{[%clk 0:01:29.3]} 28. cxd5 {[%clk 0:00:06.4]} 28... exd5 {[%clk 0:01:30.2]} 29.
e4 {[%clk 0:00:06]} 29... d4 {[%clk 0:01:26.9]} 30. Qc4 {[%clk 0:00:06.1]} 30...
a5 {[%clk 0:01:24.7]} 31. f3 {[%clk 0:00:05.6]} 31... a4 {[%clk 0:01:23.6]} 32.
Qxa4 {[%clk 0:00:04.5]} 32... Qxa4 {[%clk 0:01:21.8]} 33. bxa4 {[%clk
0:00:05.4]} 33... Ra8 {[%clk 0:01:17.6]} 34. Rc2 {[%clk 0:00:05.6]} 34... Rxa4
{[%clk 0:01:16.4]} 35. a3 {[%clk 0:00:06.5]} 35... Rb8 {[%clk 0:01:11.4]} 36.
Kf2 {[%clk 0:00:04.1]} 36... Rb3 {[%clk 0:01:10.2]} 37. Ke2 {[%clk 0:00:04.2]}
37... g5 {[%clk 0:01:04.1]} 38. Rd3 {[%clk 0:00:04.2]} 38... Rb6 {[%clk
0:00:58.4]} 39. hxg5 {[%clk 0:00:04.2]} 39... hxg5 {[%clk 0:00:59.3]} 40. f4
{[%clk 0:00:04.6]} 40... Rh6 {[%clk 0:00:56.5]} 41. Kf3 {[%clk 0:00:03.6]} 41...
g4+ {[%clk 0:00:55.7]} 42. Kxg4 {[%clk 0:00:03.3]} 42... Rh1 {[%clk 0:00:48.8]}
43. e5 {[%clk 0:00:03.4]} 43... Re1 {[%clk 0:00:45.5]} 44. Kf5 {[%clk
0:00:03.3]} 44... Ra6 {[%clk 0:00:30.4]} 45. g4 {[%clk 0:00:03.6]} 45... Rb6
{[%clk 0:00:30.9]} 46. g5 {[%clk 0:00:02.4]} 46... Be7 {[%clk 0:00:28.6]} 47.
Bc1 {[%clk 0:00:03.3]} 47... Rb1 {[%clk 0:00:27.4]} 48. Bd2 {[%clk 0:00:02.5]}
48... Re2 {[%clk 0:00:27.8]} 49. Rh3 {[%clk 0:00:01.8]} 49... Rd1 {[%clk
0:00:27]} 0-1

[Event "*** SCC Grand Prix: Titled Tuesday Blitz"]
[Site "Chess.com"]
[Date "2020.07.07"]
[Round "6"]
[White "yamalchess"]
[Black "Mikhail_Golubev"]
[Result "0-1"]
[WhiteElo "2449"]
[BlackElo "2610"]
[TimeControl "180+1"]
[EndTime "11:06:50 PDT"]
[Termination "Mikhail_Golubev won by checkmate"]

1. d4 {[%clk 0:03:00.9]} 1... Nf6 {[%clk 0:02:54.9]} 2. c4 {[%clk 0:03:01.3]}
2... g6 {[%clk 0:02:54.8]} 3. Nc3 {[%clk 0:03:01.9]} 3... Bg7 {[%clk 0:02:55.2]}
4. e4 {[%clk 0:03:02.4]} 4... d6 {[%clk 0:02:55.3]} 5. h3 {[%clk 0:03:02.8]}
5... O-O {[%clk 0:02:54.3]} 6. Bg5 {[%clk 0:03:03.3]} 6... Na6 {[%clk
0:02:52.7]} 7. Bd3 {[%clk 0:03:02.4]} 7... Qe8 {[%clk 0:02:47.1]} 8. Nge2 {[%clk
0:02:57.6]} 8... e5 {[%clk 0:02:44.9]} 9. d5 {[%clk 0:02:57.9]} 9... Nh5 {[%clk
0:02:44.5]} 10. g4 {[%clk 0:02:18.2]} 10... Nf4 {[%clk 0:02:43.8]} 11. Nxf4
{[%clk 0:02:17.6]} 11... exf4 {[%clk 0:02:43.9]} 12. Bxf4 {[%clk 0:02:15.3]}
12... f5 {[%clk 0:02:40.9]} 13. Be3 {[%clk 0:02:06.5]} 13... f4 {[%clk
0:02:25.2]} 14. Bd2 {[%clk 0:02:00.9]} 14... Nc5 {[%clk 0:02:25]} 15. Qf3 {[%clk
0:01:56.1]} 15... Nd7 {[%clk 0:02:13.8]} 16. O-O-O {[%clk 0:01:31.8]} 16... a6
{[%clk 0:01:44.9]} 17. Qe2 {[%clk 0:01:28.2]} 17... f3 {[%clk 0:01:37.1]} 18.
Qf1 {[%clk 0:01:16.3]} 18... Nc5 {[%clk 0:01:29.4]} 19. Bc2 {[%clk 0:01:15.8]}
19... b5 {[%clk 0:01:14.8]} 20. cxb5 {[%clk 0:01:07.8]} 20... axb5 {[%clk
0:01:14.2]} 21. Qxb5 {[%clk 0:01:07.7]} 21... Bxc3 {[%clk 0:01:08.5]} 22. Qxe8
{[%clk 0:01:06.9]} 22... Bxd2+ {[%clk 0:01:08.5]} 23. Rxd2 {[%clk 0:01:07.1]}
23... Rxe8 {[%clk 0:01:08.7]} 24. a3 {[%clk 0:01:00.1]} 24... Nxe4 {[%clk
0:01:04.1]} 25. Re1 {[%clk 0:00:59.7]} 25... Nf6 {[%clk 0:01:02.3]} 26. Rxe8+
{[%clk 0:00:59.3]} 26... Nxe8 {[%clk 0:01:01.9]} 27. Rd3 {[%clk 0:00:58.5]}
27... Bb7 {[%clk 0:00:57.4]} 28. Bb3 {[%clk 0:00:51.4]} 28... Nf6 {[%clk
0:00:57.2]} 29. g5 {[%clk 0:00:49.7]} 29... Nh5 {[%clk 0:00:55.8]} 30. Rxf3
{[%clk 0:00:49.1]} 30... Rf8 {[%clk 0:00:55.7]} 31. Re3 {[%clk 0:00:46.1]} 31...
Rxf2 {[%clk 0:00:53.4]} 32. Re8+ {[%clk 0:00:42.9]} 32... Rf8 {[%clk 0:00:52.1]}
33. Re7 {[%clk 0:00:42.9]} 33... Rf7 {[%clk 0:00:52.3]} 34. Re8+ {[%clk
0:00:42.9]} 34... Kg7 {[%clk 0:00:52.6]} 35. Rb8 {[%clk 0:00:42.3]} 35... Ba6
{[%clk 0:00:51.2]} 36. a4 {[%clk 0:00:35.4]} 36... Bf1 {[%clk 0:00:49.9]} 37. a5
{[%clk 0:00:33.7]} 37... Nf4 {[%clk 0:00:46.5]} 38. Kd2 {[%clk 0:00:30.2]} 38...
Nxh3 {[%clk 0:00:44.3]} 39. Ba4 {[%clk 0:00:27.5]} 39... Nxg5 {[%clk 0:00:41.8]}
40. Bc6 {[%clk 0:00:22.7]} 40... Ne4+ {[%clk 0:00:40.1]} 41. Ke3 {[%clk
0:00:21.1]} 41... Re7 {[%clk 0:00:37.7]} 42. Kd4 {[%clk 0:00:20.4]} 42... h5
{[%clk 0:00:37.2]} 43. b4 {[%clk 0:00:20]} 43... h4 {[%clk 0:00:37]} 44. b5
{[%clk 0:00:13.4]} 44... h3 {[%clk 0:00:36.6]} 45. a6 {[%clk 0:00:13.7]} 45...
h2 {[%clk 0:00:36]} 46. a7 {[%clk 0:00:14]} 46... h1=Q {[%clk 0:00:34.5]} 47.
Rg8+ {[%clk 0:00:10.4]} 47... Kxg8 {[%clk 0:00:32.9]} 48. a8=Q+ {[%clk
0:00:10.2]} 48... Kg7 {[%clk 0:00:32.7]} 49. Qa1 {[%clk 0:00:01.2]} 49... Qg1#
{[%clk 0:00:31.4]} 0-1

[Event "*** SCC Grand Prix: Titled Tuesday Blitz"]
[Site "Chess.com"]
[Date "2020.07.07"]
[Round "6"]
[White "timator"]
[Black "StephenDedalus83"]
[Result "0-1"]
[WhiteElo "2629"]
[BlackElo "2808"]
[TimeControl "180+1"]
[EndTime "11:06:52 PDT"]
[Termination "StephenDedalus83 won by resignation"]

1. d4 {[%clk 0:03:00.9]} 1... Nf6 {[%clk 0:02:59.6]} 2. Nf3 {[%clk 0:03:01.3]}
2... g6 {[%clk 0:03:00]} 3. g3 {[%clk 0:03:01.6]} 3... Bg7 {[%clk 0:03:00.5]} 4.
Bg2 {[%clk 0:03:02.5]} 4... O-O {[%clk 0:03:01.1]} 5. O-O {[%clk 0:03:03.4]}
5... d6 {[%clk 0:02:59.3]} 6. b3 {[%clk 0:03:03.2]} 6... c5 {[%clk 0:02:55.9]}
7. c4 {[%clk 0:03:03.3]} 7... cxd4 {[%clk 0:02:55.8]} 8. Nxd4 {[%clk 0:03:04.2]}
8... d5 {[%clk 0:02:55.3]} 9. cxd5 {[%clk 0:03:01.4]} 9... Nxd5 {[%clk
0:02:55.1]} 10. Bb2 {[%clk 0:03:01.9]} 10... Nb4 {[%clk 0:02:43.4]} 11. Na3
{[%clk 0:02:53.2]} 11... Qa5 {[%clk 0:02:32.4]} 12. e3 {[%clk 0:02:48.1]} 12...
Rd8 {[%clk 0:02:26.6]} 13. Nc4 {[%clk 0:02:45.6]} 13... Qa6 {[%clk 0:02:25.1]}
14. Qe2 {[%clk 0:02:26.7]} 14... e5 {[%clk 0:02:14.7]} 15. Nc2 {[%clk 0:02:15]}
15... Nxc2 {[%clk 0:02:05.1]} 16. Qxc2 {[%clk 0:02:15.9]} 16... Nc6 {[%clk
0:02:04.9]} 17. a3 {[%clk 0:01:56.5]} 17... Bf5 {[%clk 0:02:03.9]} 18. Be4
{[%clk 0:01:55.8]} 18... Bxe4 {[%clk 0:02:03]} 19. Qxe4 {[%clk 0:01:56.7]} 19...
Qb5 {[%clk 0:02:01.9]} 20. b4 {[%clk 0:01:38.2]} 20... Rac8 {[%clk 0:01:57.8]}
21. Rac1 {[%clk 0:01:37.8]} 21... f6 {[%clk 0:01:49.4]} 22. g4 {[%clk
0:01:07.2]} 22... Qd5 {[%clk 0:01:46.4]} 23. Qxd5+ {[%clk 0:00:52.5]} 23... Rxd5
{[%clk 0:01:46]} 24. b5 {[%clk 0:00:46.2]} 24... Ne7 {[%clk 0:01:42.5]} 25. a4
{[%clk 0:00:46.2]} 25... Rd3 {[%clk 0:01:28.2]} 26. Ba1 {[%clk 0:00:18.9]} 26...
Rcd8 {[%clk 0:01:03]} 27. Kg2 {[%clk 0:00:17.6]} 27... R8d7 {[%clk 0:00:59.4]}
28. a5 {[%clk 0:00:17.5]} 28... R3d5 {[%clk 0:00:58.1]} 29. Rb1 {[%clk 0:00:17]}
29... Kf7 {[%clk 0:00:57.2]} 30. b6 {[%clk 0:00:16.2]} 30... a6 {[%clk
0:00:56.3]} 31. Rfc1 {[%clk 0:00:15.7]} 31... Nc6 {[%clk 0:00:56.1]} 32. Bb2
{[%clk 0:00:14.5]} 32... Nxa5 {[%clk 0:00:56]} 33. Nxa5 {[%clk 0:00:13.5]} 33...
Rxa5 {[%clk 0:00:55.7]} 34. Rc7 {[%clk 0:00:14.1]} 34... Rd5 {[%clk 0:00:51.9]}
35. Rbc1 {[%clk 0:00:14.3]} 35... Bf8 {[%clk 0:00:48.8]} 36. Rc8 {[%clk
0:00:09.9]} 36... Bd6 {[%clk 0:00:41.7]} 37. h4 {[%clk 0:00:08.7]} 37... Rb5
{[%clk 0:00:40.5]} 38. Ba1 {[%clk 0:00:07.4]} 38... Rxb6 {[%clk 0:00:40.3]} 39.
g5 {[%clk 0:00:08.3]} 39... fxg5 {[%clk 0:00:38.9]} 40. hxg5 {[%clk 0:00:08.4]}
40... Rb5 {[%clk 0:00:35.5]} 41. Rh1 {[%clk 0:00:08.7]} 41... Ke6 {[%clk
0:00:35.1]} 42. Rh8 {[%clk 0:00:08.2]} 42... e4 {[%clk 0:00:33.7]} 43. Bf6
{[%clk 0:00:06.2]} 43... h5 {[%clk 0:00:31.5]} 44. gxh6 {[%clk 0:00:05.3]} 44...
Kxf6 {[%clk 0:00:31.5]} 45. Rg8 {[%clk 0:00:05.5]} 45... Rh7 {[%clk 0:00:26.8]}
46. Rh4 {[%clk 0:00:05.8]} 46... Rh5 {[%clk 0:00:24.2]} 47. Rxe4 {[%clk
0:00:05.3]} 47... R5xh6 {[%clk 0:00:23.8]} 48. Rge8 {[%clk 0:00:05.4]} 48... Re7
{[%clk 0:00:22.4]} 49. Rf4+ {[%clk 0:00:05.5]} 49... Bxf4 {[%clk 0:00:21.6]} 0-1

[Event "*** SCC Grand Prix: Titled Tuesday Blitz"]
[Site "Chess.com"]
[Date "2020.07.07"]
[Round "6"]
[White "FMKonstantin_Twitch"]
[Black "Oneofmyturns"]
[Result "0-1"]
[WhiteElo "2570"]
[BlackElo "2722"]
[TimeControl "180+1"]
[EndTime "11:06:52 PDT"]
[Termination "Oneofmyturns won on time"]

1. Nf3 {[%clk 0:03:00.6]} 1... d5 {[%clk 0:02:59.1]} 2. g3 {[%clk 0:02:57.3]}
2... Nf6 {[%clk 0:02:58.5]} 3. Bg2 {[%clk 0:02:57.5]} 3... c5 {[%clk 0:02:58.2]}
4. O-O {[%clk 0:02:56.9]} 4... e6 {[%clk 0:02:58.8]} 5. c4 {[%clk 0:02:53.1]}
5... d4 {[%clk 0:02:47.7]} 6. d3 {[%clk 0:02:42.3]} 6... Nc6 {[%clk 0:02:47.9]}
7. a3 {[%clk 0:02:37.9]} 7... a5 {[%clk 0:02:32.5]} 8. e3 {[%clk 0:02:36.6]}
8... Be7 {[%clk 0:02:31.1]} 9. exd4 {[%clk 0:02:36.2]} 9... cxd4 {[%clk
0:02:32]} 10. Re1 {[%clk 0:02:33.8]} 10... Nd7 {[%clk 0:02:27.7]} 11. Nbd2
{[%clk 0:02:32.3]} 11... O-O {[%clk 0:02:24.6]} 12. Ne4 {[%clk 0:02:22.2]} 12...
h6 {[%clk 0:02:06.2]} 13. g4 {[%clk 0:02:07.1]} 13... f5 {[%clk 0:02:03.7]} 14.
gxf5 {[%clk 0:02:05.9]} 14... exf5 {[%clk 0:02:04.6]} 15. Ng3 {[%clk 0:02:05.3]}
15... Bd6 {[%clk 0:01:57.1]} 16. b3 {[%clk 0:01:58.4]} 16... Nde5 {[%clk
0:01:28.5]} 17. Nxe5 {[%clk 0:01:54.3]} 17... Nxe5 {[%clk 0:01:29.4]} 18. Bf4
{[%clk 0:01:51.6]} 18... Qc7 {[%clk 0:01:27.8]} 19. c5 {[%clk 0:01:40.9]} 19...
Nf3+ {[%clk 0:01:20]} 20. Qxf3 {[%clk 0:01:40.1]} 20... Bxf4 {[%clk 0:01:20.9]}
21. Qd5+ {[%clk 0:01:40.5]} 21... Kh8 {[%clk 0:01:19.3]} 22. Qxd4 {[%clk
0:01:40.9]} 22... Rd8 {[%clk 0:01:15.6]} 23. Qc3 {[%clk 0:01:36.6]} 23... Bg5
{[%clk 0:01:08.5]} 24. d4 {[%clk 0:01:17.1]} 24... Ra6 {[%clk 0:01:08.3]} 25.
Rad1 {[%clk 0:01:06]} 25... Rg6 {[%clk 0:01:06.7]} 26. Qf3 {[%clk 0:00:51.6]}
26... Bf6 {[%clk 0:00:54.7]} 27. Nh5 {[%clk 0:00:46.7]} 27... Bxd4 {[%clk
0:00:50.2]} 28. Nf4 {[%clk 0:00:34.1]} 28... Rg4 {[%clk 0:00:46.5]} 29. Ne6
{[%clk 0:00:17.3]} 29... Bxe6 {[%clk 0:00:45.2]} 30. Rxe6 {[%clk 0:00:18.2]}
30... Qxc5 {[%clk 0:00:40.2]} 31. h3 {[%clk 0:00:15.3]} 31... Bxf2+ {[%clk
0:00:25.6]} 32. Kh1 {[%clk 0:00:14.8]} 32... Rgd4 {[%clk 0:00:26.1]} 33. Rxd4
{[%clk 0:00:13.3]} 33... Rxd4 {[%clk 0:00:12.3]} 34. Re8+ {[%clk 0:00:11.2]}
34... Kh7 {[%clk 0:00:12.6]} 35. Bf1 {[%clk 0:00:11.8]} 35... Rd2 {[%clk
0:00:07.5]} 36. Re2 {[%clk 0:00:07.5]} 36... Rxe2 {[%clk 0:00:07]} 37. Bxe2
{[%clk 0:00:08.4]} 37... Bd4 {[%clk 0:00:05.1]} 38. Kg2 {[%clk 0:00:05.7]} 38...
b6 {[%clk 0:00:04.3]} 39. Bd3 {[%clk 0:00:05.3]} 39... g6 {[%clk 0:00:04.9]} 40.
Qb7+ {[%clk 0:00:03.4]} 40... Bg7 {[%clk 0:00:05.3]} 41. Bc4 {[%clk 0:00:02.5]}
41... Qxa3 {[%clk 0:00:03.4]} 0-1

[Event "*** SCC Grand Prix: Titled Tuesday Blitz"]
[Site "Chess.com"]
[Date "2020.07.07"]
[Round "6"]
[White "WIDBIFS"]
[Black "Artyom_ChessMate"]
[Result "1-0"]
[WhiteElo "2793"]
[BlackElo "2508"]
[TimeControl "180+1"]
[EndTime "11:06:52 PDT"]
[Termination "WIDBIFS won by resignation"]

1. d4 {[%clk 0:03:00.9]} 1... d5 {[%clk 0:02:59.5]} 2. Nf3 {[%clk 0:03:01.3]}
2... Nf6 {[%clk 0:02:59.6]} 3. Bf4 {[%clk 0:03:00.8]} 3... c5 {[%clk 0:02:59.8]}
4. e3 {[%clk 0:03:01.3]} 4... Nc6 {[%clk 0:03:00.1]} 5. Nbd2 {[%clk 0:03:01.8]}
5... Qb6 {[%clk 0:02:59.7]} 6. dxc5 {[%clk 0:03:01.9]} 6... Qxc5 {[%clk
0:03:00.6]} 7. a3 {[%clk 0:03:02]} 7... g6 {[%clk 0:03:00.4]} 8. Rc1 {[%clk
0:03:00.5]} 8... Bg7 {[%clk 0:02:59.9]} 9. c4 {[%clk 0:03:01.1]} 9... O-O {[%clk
0:02:56.9]} 10. b4 {[%clk 0:03:01.2]} 10... Qb6 {[%clk 0:02:56.7]} 11. Be2
{[%clk 0:03:00]} 11... a6 {[%clk 0:02:53.7]} 12. O-O {[%clk 0:02:59.5]} 12...
dxc4 {[%clk 0:02:53.2]} 13. Nxc4 {[%clk 0:02:57.8]} 13... Qa7 {[%clk 0:02:53.4]}
14. Nfe5 {[%clk 0:02:42.5]} 14... Nxe5 {[%clk 0:02:48.4]} 15. Bxe5 {[%clk
0:02:43.4]} 15... b6 {[%clk 0:01:23.4]} 16. Bd4 {[%clk 0:02:34.2]} 16... Nd7
{[%clk 0:01:08.4]} 17. Bf3 {[%clk 0:02:13.2]} 17... Rb8 {[%clk 0:01:02.9]} 18.
Na5 {[%clk 0:01:52.3]} 18... Bb7 {[%clk 0:00:15.5]} 19. Nxb7 {[%clk 0:01:30.4]}
19... Rxb7 {[%clk 0:00:14.5]} 20. Bxg7 {[%clk 0:01:30.7]} 20... Kxg7 {[%clk
0:00:14.8]} 21. Qd4+ {[%clk 0:01:30.9]} 21... Nf6 {[%clk 0:00:14.3]} 22. Bxb7
{[%clk 0:01:31]} 22... Qxb7 {[%clk 0:00:15.2]} 23. Rfd1 {[%clk 0:01:30.7]} 23...
b5 {[%clk 0:00:13.5]} 24. h3 {[%clk 0:01:27]} 24... h5 {[%clk 0:00:13.9]} 25.
Qe5 {[%clk 0:01:27.2]} 25... Re8 {[%clk 0:00:10.7]} 26. Rd4 {[%clk 0:01:17.9]}
26... Qb6 {[%clk 0:00:07.8]} 27. Qc5 {[%clk 0:00:47]} 27... Qe6 {[%clk
0:00:07.7]} 28. Qc6 {[%clk 0:00:47.4]} 28... Qf5 {[%clk 0:00:06]} 29. Rf4 {[%clk
0:00:44]} 29... Qe5 {[%clk 0:00:04.6]} 30. Qxa6 {[%clk 0:00:34.2]} 30... Qb2
{[%clk 0:00:04.6]} 31. Rf1 {[%clk 0:00:32.3]} 31... Rb8 {[%clk 0:00:03.5]} 32.
Qa7 {[%clk 0:00:28.4]} 32... Re8 {[%clk 0:00:03.3]} 33. g4 {[%clk 0:00:26.3]}
33... hxg4 {[%clk 0:00:03.1]} 34. hxg4 {[%clk 0:00:27.2]} 34... Qa2 {[%clk
0:00:03.4]} 35. Qd4 {[%clk 0:00:25.2]} 35... g5 {[%clk 0:00:02.4]} 36. Rf5
{[%clk 0:00:25.1]} 36... Kg6 {[%clk 0:00:01.9]} 37. Rxb5 {[%clk 0:00:23.6]}
37... e5 {[%clk 0:00:01.6]} 38. Rxe5 {[%clk 0:00:20.6]} 38... Rxe5 {[%clk
0:00:02.5]} 39. Qxe5 {[%clk 0:00:21.5]} 39... Qc2 {[%clk 0:00:02.6]} 40. Qf5+
{[%clk 0:00:21.4]} 40... Qxf5 {[%clk 0:00:03.2]} 41. gxf5+ {[%clk 0:00:22.3]}
41... Kxf5 {[%clk 0:00:04.1]} 42. b5 {[%clk 0:00:22.9]} 42... Nd5 {[%clk
0:00:04.4]} 43. Rd1 {[%clk 0:00:22.8]} 43... Ke4 {[%clk 0:00:05.3]} 44. Rxd5
{[%clk 0:00:21.3]} 44... Kxd5 {[%clk 0:00:06.2]} 45. a4 {[%clk 0:00:22.2]} 45...
Kc5 {[%clk 0:00:06.6]} 46. Kg2 {[%clk 0:00:22.6]} 46... Kb6 {[%clk 0:00:07.5]}
47. Kg3 {[%clk 0:00:22.8]} 47... Ka5 {[%clk 0:00:08.4]} 48. Kg4 {[%clk
0:00:22.8]} 48... Kxa4 {[%clk 0:00:09.3]} 49. b6 {[%clk 0:00:23]} 49... Kb5
{[%clk 0:00:10.2]} 50. b7 {[%clk 0:00:23.4]} 50... Kc6 {[%clk 0:00:11.1]} 51.
b8=Q {[%clk 0:00:23.9]} 51... Kd5 {[%clk 0:00:11]} 52. Qd8+ {[%clk 0:00:23.9]}
1-0